Cogmind - Beta 13 @@@ ROGUE MODE // 2024.04.25 @ 12:42:07 Player: Inomamais Result: Destroyed by exploding Fusion Modulator Performance ------------- Evolutions (6) 3000 Regions Visited (25) 5000 Robots Destroyed (190) 950 Value Destroyed (9953) 9953 Prototype IDs (3) 60 Alien Tech Used (0) 0 Bonus (5255) 5255 TOTAL SCORE: 24218 Bonus ------- High Alert Combat Kills 1371 Follower Combat Kills 1090 Entered Garrisons 600 Used RIF Installer 2000 Aligned with FarCom 300 Friendly Fire -106 Cogmind --------- Core Integrity 0/1150 Matter 285/300 Energy 58/100 System Corruption 28% Temperature Cool (12) Movement Core (50) Location -4/Factory Parts ------- > --- POWER (2) -------- (None) > --- PROPULSION (5) --- (None) > --- UTILITY (9) ------ (None) > --- WEAPON (3) ------- (None) > --- INVENTORY (5) ---- Advanced Sensor Array Plasma Rifle Heavy Disruptor Cannon Peak State ------------ > --- POWER ------------ Light Quantum Reactor Reinforced Quantum Reactor > --- PROPULSION ------- Heavy Treads Heavy Treads Centrium Wheel > --- UTILITY ---------- Advanced Heat Sink Advanced Coolant Injector Huge Storage Unit Enhanced Optical Array Improved Signal Interpreter Advanced Targeting Computer Advanced Target Analyzer Core Analyzer Improved Transmission Jammer > --- WEAPON ----------- HERF Cannon Heavy Ion Cannon Heavy Plasma Cannon > --- INVENTORY -------- Light Antimatter Reactor Light Antimatter Reactor Quantum Reactor Flexi-carbon Leg Flexi-carbon Leg Advanced Heat Sink Advanced Heat Sink Advanced Heat Sink Advanced Heat Sink Advanced Heat Sink Advanced Coolant Injector Energy Well Advanced Sensor Array Energy Filter Quantum Capacitor Improved Hacking Suite Authchip [R/Combat] Plasma Rifle Plasma Rifle Phase Gun Proton Cannon Phase Cannon Matter Neutralizer Improved Remote Datajack [Rating: 120] Favorites ----------- Power Light Quantum Reactor Engine Improved Deuterium Engine Power Core Micro Nuclear Core Reactor Light Quantum Reactor Propulsion Armored Huge Wheel Treads Medium Treads Leg Myomer Leg Wheel Armored Huge Wheel Utility Advanced Targeting Computer Device Advanced Heat Sink Storage Huge Storage Unit Processor Advanced Targeting Computer Hackware Hacking Suite Protection Improved Medium Armor Plating Weapon Heavy Ion Cannon Energy Gun Gatling Laser Energy Cannon Heavy Ion Cannon Ballistic Gun Assault Rifle Launcher Mini Grenade Launcher Special Weapon Improved Remote Datajack Impact Weapon Power Maul Build | -11 -10 -10 -10 -9 -8 -7 -6 -6 -6 -6 -6 -6 -6 -6 -5 -5 -5 -5 -5 -5 -5 -4 -4 -4 -4 ------- Run | Yrd Mat Min Exi Min Mat Fac Fac Was Fac Gar Fac Low Low Zio Pro Fac Gar Fac Upp Upp War Pro Fac Gar Fac Slots Evolved 12 | . . . . . 4 2 2 . . . . . . . . 2 . . . . . . 2 . . Power 1 | . . . . . . . . . . . . . . . . 1 . . . . . . . . . Propulsion 3 | . . . . . 2 . . . . . . . . . . . . . . . . . 1 . . Utility 7 | . . . . . 2 1 2 . . . . . . . . 1 . . . . . . 1 . . Weapon 1 | . . . . . . 1 . . . . . . . . . . . . . . . . . . . Parts Attached 280 | 7 6 . 1 6 22 58 6 8 2 18 15 3 5 4 6 4 20 . 5 . . 4 7 37 36 Power 32 | 1 1 . . 1 2 5 . 1 . . 2 . . . . 1 5 . . . . 1 . 7 5 Engine 12 | 1 1 . . 1 2 4 . . . . 2 . . . . 1 . . . . . . . . . Core 1 | . . . . . . 1 . . . . . . . . . . . . . . . . . . . Reactor 19 | . . . . . . . . 1 . . . . . . . . 5 . . . . 1 . 7 5 Propulsion 52 | 2 1 . . 1 10 15 . . . . 1 . . 1 . . . . 1 . . . 1 3 16 Treads 19 | 1 . . . . 3 8 . . . . . . . . . . . . . . . . . 2 5 Leg 8 | . . . . . 4 . . . . . . . . . . . . . . . . . . . 4 Wheel 25 | 1 1 . . 1 3 7 . . . . 1 . . 1 . . . . 1 . . . 1 1 7 Hover . | . . . . . . . . . . . . . . . . . . . . . . . . . . Flight . | . . . . . . . . . . . . . . . . . . . . . . . . . . Utility 87 | 2 2 . . 1 6 11 4 4 1 8 8 1 1 . 1 3 10 . 2 . . 1 6 9 6 Device 61 | 1 . . . . 4 6 1 3 1 8 6 1 1 . 1 3 8 . 1 . . 1 4 6 5 Storage 4 | 1 2 . . . . . 1 . . . . . . . . . . . . . . . . . . Processor 8 | . . . . 1 1 2 . 1 . . . . . . . . . . 1 . . . 1 1 . Hackware 7 | . . . . . 1 2 . . . . . . . . . . 1 . . . . . . 2 1 Protection 7 | . . . . . . 1 2 . . . 2 . . . . . 1 . . . . . 1 . . Artifact . | . . . . . . . . . . . . . . . . . . . . . . . . . . Weapon 109 | 2 2 . 1 3 4 27 2 3 1 10 4 2 4 3 5 . 5 . 2 . . 2 . 18 9 Energy Gun 29 | 1 1 . . 1 2 12 . . . . 1 1 . 1 4 . . . . . . . . 4 1 Energy Cannon 45 | . . . . . 2 5 2 2 1 4 3 . 2 2 . . 4 . 1 . . 2 . 9 6 Ballistic Gun 2 | 1 . . . 1 . . . . . . . . . . . . . . . . . . . . . Ballistic Cannon . | . . . . . . . . . . . . . . . . . . . . . . . . . . Launcher 16 | . 1 . . 1 . 1 . . . 4 . 1 2 . 1 . 1 . 1 . . . . 3 . Special Weapon 8 | . . . 1 . . 3 . 1 . . . . . . . . . . . . . . . 2 1 Impact Weapon 9 | . . . . . . 6 . . . 2 . . . . . . . . . . . . . . 1 Slashing Weapon . | . . . . . . . . . . . . . . . . . . . . . . . . . . Piercing Weapon . | . . . . . . . . . . . . . . . . . . . . . . . . . . Special Melee Weapon . | . . . . . . . . . . . . . . . . . . . . . . . . . . Unidentified Prototypes 1 | . . . 1 . . . . . . . . . . . . . . . . . . . . . . Corrupted Parts 6 | . . . . . 1 . . . . . . . . . 2 . . . . . . 1 . 2 . System Corruption 23 | . . . . . 1 . . . . . . . . . 11 . . . . . . 4 . 7 . Parts Lost 64 | . 1 . . 3 7 1 . . . 1 3 . 1 1 . . 5 . 1 . . . . 14 26 Power 10 | . . . . 1 1 . . . . . 1 . . . . . 2 . . . . . . 2 3 Propulsion 24 | . 1 . . 1 3 1 . . . . 1 . . 1 . . . . 1 . . . . 3 12 Utility 10 | . . . . . . . . . . 1 . . 1 . . . 2 . . . . . . 1 5 Weapon 20 | . . . . 1 3 . . . . . 1 . . . . . 1 . . . . . . 8 6 Highest Loss Streak 14 | . 1 . . 3 4 1 . . . 1 3 . 1 1 . . 2 . 1 . . . . 4 14 To Critical Strikes 1 | . . . . . . . . . . . . . . . . . . . . . . . . . 1 Average Slot Usage (%) 90 | . 99 100 100 79 95 97 79 85 86 85 85 86 86 79 86 88 87 88 87 88 88 88 86 88 87 Engine 4 | . 14 14 14 8 8 7 6 3 . . 3 6 6 6 6 11 . . . . . . . . . Reactor 4 | . . . . . . . . 2 6 6 2 . . . . . 10 11 11 11 11 11 10 10 9 Treads 5 | . 14 14 14 14 14 13 . . . . . . . . . . . . . . . . . 5 6 Wheel 11 | . 13 14 14 12 14 12 13 13 13 13 12 13 13 13 13 11 11 11 10 11 11 11 12 8 4 Device 13 | . 14 14 14 8 10 6 6 14 13 15 16 20 20 20 20 23 21 17 17 17 17 17 15 13 13 Storage 6 | . 14 14 14 14 9 7 6 6 6 6 6 6 6 6 6 5 5 5 5 5 5 5 5 5 4 Processor 18 | . . . . 5 9 18 20 24 26 23 20 20 20 20 20 17 17 17 21 23 23 23 21 25 25 Hackware 1 | . . . . . 4 3 . . . . . . . . . . . . . . . . . 1 1 Energy Gun 3 | . 14 . . . 8 6 6 . . . 3 6 13 4 5 5 . . . . . . . 3 . Energy Cannon 12 | . . . . . 8 12 13 19 20 19 16 12 5 8 13 11 16 17 16 17 17 17 15 9 12 Naked Turns 28 | . . . . . . . . . . . . . . . . . . . . . . . . . 28 Heaviest Build 174 | 13 51 49 56 48 63 76 135 135 126 129 127 115 112 113 116 133 174 174 174 167 167 167 166 166 158 Greatest Support 141 | 10 16 16 16 10 20 56 56 56 56 56 56 56 56 56 56 56 56 56 56 56 56 56 72 140 141 Greatest Overweight (x) 11 | 1 3 3 3 4 6 6 2 2 2 2 2 2 1 2 2 2 3 3 3 2 2 2 2 9 11 Average Overweight (x) 2 | . 1 3 3 4 2 2 1 1 2 2 2 1 1 1 2 2 2 3 2 2 2 2 2 1 1 Largest Inventory Capacity 25 | 8 20 20 20 20 20 20 25 25 25 25 25 25 25 25 25 25 25 25 25 25 25 25 25 25 25 Average Capacity 22 | 7 10 20 20 20 20 20 21 25 25 25 25 25 25 25 25 25 25 25 25 25 25 25 25 25 24 Most Carried 25 | 7 11 20 20 20 20 20 25 25 25 25 25 25 25 25 25 25 25 25 25 23 23 25 25 25 25 Average Carried 22 | 4 9 16 19 19 18 19 21 24 24 24 24 24 24 24 24 23 24 25 23 23 23 23 24 24 22 Final Capacity 25 | 8 20 20 20 20 20 20 25 25 25 25 25 25 25 25 25 25 25 25 25 25 25 25 25 25 5 Final Carried 25 | 7 11 20 20 19 20 20 25 25 25 25 25 25 25 23 25 24 25 25 23 23 23 25 25 25 4 Class Distribution -------------------- 45% | Gunner 19% | Mutant 16% | Scavenger-Gunner 7% | Skirmisher 6% | Commander-Skirmisher 3% | Commander-Gunner Dominant Class ---------------- Mutant | -10/Materials Mutant | -10/Mines Mutant | -10/Exiles Mutant | -9/Mines Mutant | -8/Materials Gunner | -7/Factory Gunner | -6/Factory Gunner | -6/Waste Gunner | -6/Factory Gunner | -6/Garrison Gunner | -6/Factory Gunner | -6/Lower Caves Gunner | -6/Lower Caves Gunner | -6/Zion Gunner | -5/Proximity Caves Skirmisher | -5/Factory Skirmisher | -5/Garrison Commander-Gunner | -5/Factory Commander-Skirmisher | -5/Upper Caves Commander-Skirmisher | -5/Upper Caves Commander-Skirmisher | -5/Warlord Commander-Skirmisher | -4/Proximity Caves Gunner | -4/Factory Scavenger-Gunner | -4/Garrison Scavenger-Gunner | -4/Factory Resources | -11 -10 -10 -10 -9 -8 -7 -6 -6 -6 -6 -6 -6 -6 -6 -5 -5 -5 -5 -5 -5 -5 -4 -4 -4 -4 ----------- Run | Yrd Mat Min Exi Min Mat Fac Fac Was Fac Gar Fac Low Low Zio Pro Fac Gar Fac Upp Upp War Pro Fac Gar Fac Matter Collected 4226 | 235 178 75 . 30 362 733 185 148 . 455 196 115 126 35 75 . 306 . 56 . . 10 70 511 325 Remotely . | . . . . . . . . . . . . . . . . . . . . . . . . . . Salvage Created 10010 | 30 402 50 . 171 613 879 74 821 . 1290 233 338 358 . 221 . 1226 . 88 . . 55 80 1833 1248 Parts 442 | 5 26 7 . 6 37 56 8 8 . 54 7 9 7 . 7 . 40 . 4 . . 5 4 74 78 Haulers Intercepted . | . . . . . . . . . . . . . . . . . . . . . . . . . . Recyclers Shooed 2 | . 1 . . . . . . . . . . . . . . . . . . . . . . . 1 Parts Field Recycled . | . . . . . . . . . . . . . . . . . . . . . . . . . . Retrieved Matter . | . . . . . . . . . . . . . . . . . . . . . . . . . . Parts Self-Destructed 30 | . . . . . . . . . . . . 4 2 . 6 . . . 13 . . 5 . . . Prevented 16 | . . . . . . . . . . . . 4 4 . 7 . . . 1 . . . . . . Kills | -11 -10 -10 -10 -9 -8 -7 -6 -6 -6 -6 -6 -6 -6 -6 -5 -5 -5 -5 -5 -5 -5 -4 -4 -4 -4 ------- Run | Yrd Mat Min Exi Min Mat Fac Fac Was Fac Gar Fac Low Low Zio Pro Fac Gar Fac Upp Upp War Pro Fac Gar Fac Combat Hostiles Destroyed 173 | . 4 3 . 21 12 15 2 3 . 23 4 5 9 . 3 . 21 . 3 . . 1 1 25 18 Guns 19 | . 2 . . . 2 5 1 . . . 1 . 3 . . . . . . . . . . 5 . Cannons 82 | . . . . . 7 7 1 2 . 11 3 1 1 . 1 . 17 . 2 . . 1 1 16 11 AOE 55 | . 2 3 . 21 1 3 . . . 7 . 1 5 . 1 . 1 . 1 . . . . 3 6 Classes Destroyed 19 | 1 4 2 . 2 2 1 . 1 . 2 . . . . . . 1 . . . . . . 1 2 Worker 8 | . . 1 . 1 . 2 . . . . . . . . . . . . . . . . . . 4 Builder 10 | . . . . . 2 2 . . . . . . . . . . . . . . . . . . 6 Tunneler 3 | 1 . 1 . . . 1 . . . . . . . . . . . . . . . . . . . Recycler 3 | . 2 . . . . 1 . . . . . . . . . . . . . . . . . . . Operator 3 | . 2 . . . 1 . . . . . . . . . . . . . . . . . . . . Watcher 8 | . 2 . . . 2 2 1 . . . 1 . . . . . . . . . . . . . . Swarmer 33 | . . 3 . . 3 3 2 . . 6 . . 6 . . . 3 . 3 . . . . 4 . Saboteur 1 | . . . . . . . . . . . . . . . . . . . . . . . . . 1 Grunt 75 | . 4 . . 2 8 2 . . . 7 2 4 2 . 2 . 14 . . . . . . 18 10 Brawler 4 | . . . . . . . . . . 1 . . . . 1 . . . . . . . . . 2 Duelist 4 | . . . . . . . . . . 2 1 . . . . . . . . . . . . . 1 Protector 1 | . . . . . . . . . . . . . . . . . . . . . . . . . 1 Sentry 16 | . . . . . 1 4 . . . 7 . . 1 . . . 2 . . . . . 1 . . Hunter 2 | . . . . . . . . . . . . . . . . . 2 . . . . . . . . Programmer 14 | . . . . . . 6 . . . . 1 1 . . . . . . . . . 1 . 2 3 Behemoth 1 | . . . . . . . . . . . . . . . . . . . . . . . . 1 . Compactor 3 | . . . . . . . . 3 . . . . . . . . . . . . . . . . . Zionite 1 | . . . . 1 . . . . . . . . . . . . . . . . . . . . . Assembled 19 | . . . . 19 . . . . . . . . . . . . . . . . . . . . . Best Kill Streak 21 | 1 3 4 . 21 6 3 2 2 . 5 1 4 3 . 3 . 3 . 2 . . 1 1 4 6 Combat Bots Only 21 | . 2 3 . 21 3 3 2 2 . 5 1 4 3 . 3 . 3 . 2 . . 1 1 4 5 Max Kills in Single Turn 5 | 1 2 4 . 5 1 2 1 1 . 2 1 1 1 . 1 . 1 . 2 . . 1 1 1 5 Gunslinging . | . . . . . . . . . . . . . . . . . . . . . . . . . . Exploded 5 | . 2 3 . 5 1 2 . . . 2 . 1 1 . 1 . 1 . 1 . . . . 1 5 Melee . | . . . . . . . . . . . . . . . . . . . . . . . . . . Uniques/NPCs Destroyed . | . . . . . . . . . . . . . . . . . . . . . . . . . . Combat | -11 -10 -10 -10 -9 -8 -7 -6 -6 -6 -6 -6 -6 -6 -6 -5 -5 -5 -5 -5 -5 -5 -4 -4 -4 -4 -------- Run | Yrd Mat Min Exi Min Mat Fac Fac Was Fac Gar Fac Low Low Zio Pro Fac Gar Fac Upp Upp War Pro Fac Gar Fac Hostile Shots Fired 905 | . 4 2 . 23 75 100 11 . . 76 25 10 17 34 2 . 84 . 14 . . . 4 212 212 Missed 281 | . 1 2 . 8 16 41 3 . . 30 5 3 3 15 1 . 22 . 5 . . . 1 57 68 Damage Taken 12118 | . 100 24 . 403 850 752 130 . . 755 366 122 214 128 20 . 1231 . 185 . . . 74 3199 3565 Core 1983 | . 17 12 . 97 137 100 . . . 68 59 . 26 42 . . 241 . . . . . . 302 882 Absorbed by Shields 63 | . . . . . . . . . . 4 . . . . . . 59 . . . . . . . . Reduced by Siege Mode 87 | . . . . . . . . . . . . . . . . . . . . . . . . 87 . Core Remaining (%) 76 | 100 . . . 49 75 85 . . . . . . . . 77 . . . . . . 75 . . . Volleys Fired 626 | 3 34 5 . 15 41 95 41 19 . 40 15 11 40 . 14 . 73 . 3 . . 1 5 98 73 Largest 3 | 2 2 1 . 1 2 3 2 3 . 3 3 3 3 . 2 . 3 . 3 . . 3 2 3 3 Hottest 305 | 60 65 30 . 30 138 211 180 245 . 210 235 230 205 . 150 . 300 . 283 . . 305 240 243 280 Shots Fired 1134 | 6 68 5 . 15 73 158 45 53 1 87 37 19 49 . 23 . 141 . 7 . . 3 7 217 120 Gun 270 | 6 68 2 . 2 34 44 7 . . . 7 4 12 . . . 2 . . . . . . 79 3 Cannon 786 | . . . . . 39 109 38 51 1 73 30 10 28 . 18 . 133 . 6 . . 3 7 124 116 Launcher 66 | . . 3 . 13 . 2 . . . 14 . 5 9 . 5 . 6 . 1 . . . . 8 . Special 12 | . . . . . . 3 . 2 . . . . . . . . . . . . . . . 6 1 Kinetic 41 | 3 34 2 . 2 . . . . . . . . . . . . . . . . . . . . . Thermal 885 | . . . . . 51 153 45 51 1 73 37 14 34 . 18 . 133 . 6 . . 3 7 161 98 Explosive 18 | . . 3 . 13 . 2 . . . . . . . . . . . . . . . . . . . Electromagnetic 178 | 3 34 . . . 22 . . . . 14 . 5 15 . 5 . 8 . 1 . . . . 50 21 Robot Hit Streak 35 | 2 8 10 . 7 16 22 7 23 . 35 10 5 17 . 20 . 21 . 10 . . 1 5 18 22 Robot Miss Streak 4 | 1 4 1 . 1 3 2 3 1 1 1 2 1 2 . . . 2 . 2 . . 1 . 2 2 Penetration Max . | . . . . . . . . . . . . . . . . . . . . . . . . . . Secondary Targets 1 | . . . . . . . . . . . . . . . . . . . . . . . . 1 . Max Gunslinging Chain 1 | . . . . . . . . . . . . . . . . . . . . . . . . 1 . Shots Hit Robots 540 | 4 35 2 . 7 56 61 9 45 . 52 21 6 11 . 3 . 64 . 3 . . 1 4 93 63 Core Hits 352 | 1 12 5 . 35 22 46 6 7 . 32 13 7 18 . 6 . 31 . 4 . . 1 1 58 47 Critical Kills 7 | . 1 . . . 1 . . 1 . 2 . . . . . . 1 . . . . . . . 1 Critical Parts Destroyed 2 | . . . . . . . . . . . . . . . . . . . . . . . . 2 . Critical Strikes 13 | . 2 . . . 2 . . 1 . 2 . . . . . . 1 . . . . . . 3 2 Burn 1 | . . . . . 1 . . . . . . . . . . . . . . . . . . . . Meltdown 6 | . . . . . 1 . . 1 . 2 . . . . . . 1 . . . . . . . 1 Destroy 3 | . 1 . . . . . . . . . . . . . . . . . . . . . . 2 . Corrupt 3 | . 1 . . . . . . . . . . . . . . . . . . . . . . 1 1 Melee Attacks 44 | . . . . . . 36 . . . 8 . . . . . . . . . . . . . . . Impact 44 | . . . . . . 36 . . . 8 . . . . . . . . . . . . . . . Slashing . | . . . . . . . . . . . . . . . . . . . . . . . . . . Piercing . | . . . . . . . . . . . . . . . . . . . . . . . . . . Sneak Attacks . | . . . . . . . . . . . . . . . . . . . . . . . . . . Combat Hostiles . | . . . . . . . . . . . . . . . . . . . . . . . . . . Follow-up Attacks . | . . . . . . . . . . . . . . . . . . . . . . . . . . Damage Inflicted 21003 | 60 662 201 . 1433 1242 1577 205 1306 . 1849 606 599 436 . 402 . 2957 . 203 . . 52 175 3462 3576 Guns 3454 | 60 545 28 . 10 519 731 140 . . . 170 17 142 . . . 51 . . . . . . 1041 . Cannons 11002 | . . . . . 674 672 65 1306 . 1071 436 41 26 . 87 . 2428 . 173 . . 52 175 1655 2141 Explosions 6514 | . 117 173 . 1423 46 174 . . . 778 . 541 268 . 315 . 478 . 30 . . . . 766 1405 Melee . | . . . . . . . . . . . . . . . . . . . . . . . . . . Ramming 33 | . . . . . 3 . . . . . . . . . . . . . . . . . . . 30 Kinetic 282 | 30 214 28 . 10 . . . . . . . . . . . . . . . . . . . . . Thermal 13182 | . 117 . . . 948 1403 205 1306 . 1128 606 163 104 . 87 . 2428 . 173 . . 52 175 2177 2110 Explosive 2671 | . . 173 . 1423 . 174 . . . . . . . . . . . . . . . . . . 901 Electromagnetic 4835 | 30 331 . . . 291 . . . . 721 . 436 332 . 315 . 529 . 30 . . . . 1285 535 Impact . | . . . . . . . . . . . . . . . . . . . . . . . . . . Slashing . | . . . . . . . . . . . . . . . . . . . . . . . . . . Piercing . | . . . . . . . . . . . . . . . . . . . . . . . . . . Highest Corruption 28 | . . . . . 1 4 . 13 13 13 14 14 14 14 11 . . . . . . 4 . 9 28 Average Corruption 8 | . . . . . 1 3 . 9 13 13 13 14 14 14 8 . . . . . . 4 . 7 10 Corruption Purged . | . . . . . . . . . . . . . . . . . . . . . . . . . . Corruption Blocked . | . . . . . . . . . . . . . . . . . . . . . . . . . . Effects 397 | . . . . . . 86 . 8 12 70 41 27 26 4 1 . . . . . . . . 66 56 Message Errors 107 | . . . . . . 21 . 1 3 21 12 6 10 1 1 . . . . . . . . 20 11 Matter Fused 93 | . . . . . . 29 . 2 2 16 11 4 4 2 . . . . . . . . . 12 11 Heat Flow Errors 48 | . . . . . . 6 . 1 1 7 7 4 6 . . . . . . . . . . 8 8 Energy Discharges 45 | . . . . . . 8 . 1 3 10 2 5 1 . . . . . . . . . . 7 8 Parts Rejected 4 | . . . . . . 1 . 1 . 1 1 . . . . . . . . . . . . . . Parts Fused 8 | . . . . . . 1 . . . 1 . 2 . . . . . . . . . . . 3 1 Data Loss (minor) 41 | . . . . . . 8 . . . 7 3 3 3 1 . . . . . . . . . 9 7 Data Loss (major) 19 | . . . . . . 6 . . 2 4 1 1 . . . . . . . . . . . 3 2 Misfires 11 | . . . . . . 2 . 1 1 . 1 2 . . . . . . . . . . . 3 1 Alerts 9 | . . . . . . 4 . . . 2 1 . . . . . . . . . . . . 1 1 Misdirections 3 | . . . . . . . . . . . . . . . . . . . . . . . . . 3 Weapon Failures 9 | . . . . . . . . 1 . 1 2 . 2 . . . . . . . . . . . 3 Overload Shots . | . . . . . . . . . . . . . . . . . . . . . . . . . . Overflow Damage 394 | . 15 . . 75 4 3 . . . 3 . . . . 3 . 149 . . . . . . . 142 Projectiles 223 | . . . . . 4 3 . . . . . . . . . . 149 . . . . . . . 67 Explosions 171 | . 15 . . 75 . . . . . 3 . . . . 3 . . . . . . . . . 75 Melee . | . . . . . . . . . . . . . . . . . . . . . . . . . . Knockbacks . | . . . . . . . . . . . . . . . . . . . . . . . . . . Impact . | . . . . . . . . . . . . . . . . . . . . . . . . . . Kinetic . | . . . . . . . . . . . . . . . . . . . . . . . . . . Secondary . | . . . . . . . . . . . . . . . . . . . . . . . . . . Self-Inflicted Damage 800 | . 55 24 . 194 23 . . . . . . . 13 . . . . . . . . . . . 491 Shots 15 | . 1 1 . 6 1 . . . . . . . 1 . . . . . . . . . . . 5 Rammed 3 | . . . . . 1 . . . . . . . . . . . . . . . . . . . 2 Targets Rammed 3 | . . . . . 1 . . . . . . . . . . . . . . . . . . . 2 Kicked . | . . . . . . . . . . . . . . . . . . . . . . . . . . Crushed . | . . . . . . . . . . . . . . . . . . . . . . . . . . Highest Temperature 599 | . 39 . . 75 222 346 324 356 55 312 246 420 204 . . . 297 . 123 . . 144 150 361 599 Average Temperature 83 | . 8 . . 44 67 90 144 97 31 72 86 126 57 . . . 73 . 53 . . 83 53 94 106 Received Heat Transfer 3020 | . 24 . . 106 450 129 . . . 518 147 45 9 . 9 . 315 . 9 . . . . 712 547 Effects 11 | . . . . . . 2 1 . . . . 1 . . . . 1 . . . . . . . 6 Shutdowns 1 | . . . . . . . . . . . . . . . . . . . . . . . . . 1 Energy Bleed 5 | . . . . . . 1 1 . . . . 1 . . . . 1 . . . . . . . 1 Interference 4 | . . . . . . . . . . . . . . . . . . . . . . . . . 4 Matter Decay 1 | . . . . . . 1 . . . . . . . . . . . . . . . . . . . Siege Activations 1 | . . . . . . . . . . . . . . . . . . . . . . . . 1 . Total Turns 26 | . . . . . . . . . . . . . . . . . . . . . . . . 26 . Longest Duration 26 | . . . . . . . . . . . . . . . . . . . . . . . . 26 . Robots Corrupted 10 | . . . . . . . . . . 3 . 3 . . 1 . 2 . . . . . . 1 . Combat Hostiles 10 | . . . . . . . . . . 3 . 3 . . 1 . 2 . . . . . . 1 . Parts Fried 22 | . 1 . . . 2 . . . . 5 . 4 . . . . 1 . . . . . . 6 3 Impact Corruptions . | . . . . . . . . . . . . . . . . . . . . . . . . . . Robots Melted 7 | . . . . . 2 . . 1 . 2 . . . . . . 1 . . . . . . . 1 Combat Hostiles 7 | . . . . . 2 . . 1 . 2 . . . . . . 1 . . . . . . . 1 Parts Melted 40 | . . . . . 5 11 1 1 . 8 1 . 1 . . . 2 . . . . . . 7 3 Heat Transferred 16792 | . 100 . . . 1567 2430 425 1981 . 1507 907 162 212 . 111 . 2109 . 148 . . 37 148 2618 2330 Parts Sabotaged . | . . . . . . . . . . . . . . . . . . . . . . . . . . Parts Stolen . | . . . . . . . . . . . . . . . . . . . . . . . . . . Parts Stripped . | . . . . . . . . . . . . . . . . . . . . . . . . . . Power Chain Reactions 7 | . 1 . . . 1 . . . . 2 . 1 . . . . . . . . . . . 2 . Alert | -11 -10 -10 -10 -9 -8 -7 -6 -6 -6 -6 -6 -6 -6 -6 -5 -5 -5 -5 -5 -5 -5 -4 -4 -4 -4 ------- Run | Yrd Mat Min Exi Min Mat Fac Fac Was Fac Gar Fac Low Low Zio Pro Fac Gar Fac Upp Upp War Pro Fac Gar Fac Peak Influence 2093 | 5 230 113 . 102 193 212 125 38 64 1037 560 . . . . 25 2093 1098 . . . . 79 1562 1112 Initial 1098 | . 3 22 . . 35 27 89 35 26 30 543 . . . . . 17 1098 . . . . . 1 819 Average 376 | . 87 33 . 86 86 82 47 35 26 490 419 . . . . 11 857 1098 . . . . 21 656 947 Maximum Alert Level 5 | . 1 . . . . 1 . . . 3 2 . . . . . 5 3 . . . . . 4 4 Low Security (%) 57 | 100 88 100 . 100 100 99 100 100 100 16 . . . . . 100 17 . . . . . 100 23 . Level 1 9 | . 11 . . . . . . . . 20 58 . . . . . 24 . . . . . . 5 . Level 2 10 | . . . . . . . . . . 39 41 . . . . . 2 . . . . . . 31 . Level 3 14 | . . . . . . . . . . 23 . . . . . . 19 100 . . . . . 20 95 Level 4 5 | . . . . . . . . . . . . . . . . . 15 . . . . . . 19 4 Level 5 2 | . . . . . . . . . . . . . . . . . 20 . . . . . . . . High Security . | . . . . . . . . . . . . . . . . . . . . . . . . . . Max Security . | . . . . . . . . . . . . . . . . . . . . . . . . . . Squads Dispatched 35 | . 3 1 . . 5 10 4 . 1 . 3 . . . . . . . . . . . 1 . 7 Investigation 5 | . 1 1 . . 2 1 . . . . . . . . . . . . . . . . . . . Extermination 13 | . . . . . . 8 1 . 1 . 1 . . . . . . . . . . . . . 2 Reinforcement 8 | . 2 . . . 3 1 . . . . 1 . . . . . . . . . . . 1 . . Assault 6 | . . . . . . . . . . . 1 . . . . . . . . . . . . . 5 Garrison 3 | . . . . . . . 3 . . . . . . . . . . . . . . . . . . Intercept . | . . . . . . . . . . . . . . . . . . . . . . . . . . Searches Triggered . | . . . . . . . . . . . . . . . . . . . . . . . . . . Construction Impeded 1 | . . . . . 1 . . . . . . . . . . . . . . . . . . . . Haulers Reinforced . | . . . . . . . . . . . . . . . . . . . . . . . . . . Active Scanning Responses . | . . . . . . . . . . . . . . . . . . . . . . . . . . Cargo Convoy Interrupts . | . . . . . . . . . . . . . . . . . . . . . . . . . . Stealth | -11 -10 -10 -10 -9 -8 -7 -6 -6 -6 -6 -6 -6 -6 -6 -5 -5 -5 -5 -5 -5 -5 -4 -4 -4 -4 --------- Run | Yrd Mat Min Exi Min Mat Fac Fac Was Fac Gar Fac Low Low Zio Pro Fac Gar Fac Upp Upp War Pro Fac Gar Fac Distress Signals 7 | . 2 . . . . . 1 . 2 . . . . . . . 1 . . . . . . . 1 Communications Jammed 51 | . . . . . . . . . . . . . . . . . . . . . . . . . 51 Distress Signals 51 | . . . . . . . . . . . . . . . . . . . . . . . . . 51 Times Spotted 279 | . 15 3 . 23 15 28 6 6 . 25 11 5 8 5 3 2 32 . 9 . . . 3 31 49 Peak Tracking Total 16 | . 3 3 . 16 4 3 5 3 1 4 5 4 3 4 3 1 8 . 5 . . . 1 4 14 Tactical Retreats 19 | . 1 . . . . . 1 . . 2 1 . 2 1 . . 4 . . . . . . 2 5 Traps | -11 -10 -10 -10 -9 -8 -7 -6 -6 -6 -6 -6 -6 -6 -6 -5 -5 -5 -5 -5 -5 -5 -4 -4 -4 -4 ------- Run | Yrd Mat Min Exi Min Mat Fac Fac Was Fac Gar Fac Low Low Zio Pro Fac Gar Fac Upp Upp War Pro Fac Gar Fac Traps Triggered 34 | . . . . . 2 2 1 . 1 11 2 . . . . . 9 . . . . . . 5 1 Indirectly . | . . . . . . . . . . . . . . . . . . . . . . . . . . Trap Hack Attempts . | . . . . . . . . . . . . . . . . . . . . . . . . . . Triggered . | . . . . . . . . . . . . . . . . . . . . . . . . . . Disarmed . | . . . . . . . . . . . . . . . . . . . . . . . . . . Reprogrammed . | . . . . . . . . . . . . . . . . . . . . . . . . . . Reused . | . . . . . . . . . . . . . . . . . . . . . . . . . . Traps Extracted . | . . . . . . . . . . . . . . . . . . . . . . . . . . Installed . | . . . . . . . . . . . . . . . . . . . . . . . . . . Triggered 1 | . . . . . . . . . . . . . . . 1 . . . . . . . . . . Most Traps Carried 2 | . . 2 2 . . . . . . . . . . . . . . . . . . . . . . Machines | -11 -10 -10 -10 -9 -8 -7 -6 -6 -6 -6 -6 -6 -6 -6 -5 -5 -5 -5 -5 -5 -5 -4 -4 -4 -4 ---------- Run | Yrd Mat Min Exi Min Mat Fac Fac Was Fac Gar Fac Low Low Zio Pro Fac Gar Fac Upp Upp War Pro Fac Gar Fac Machines Disabled 33 | . 1 . . . 2 2 . . . 5 1 . . . . . 7 . . . . . 2 4 9 Max in Single Turn 4 | . 1 . . . 1 . . . . 1 1 . . . . . 2 . . . . . . 1 4 Garrison Access 2 | . . . . . . 2 . . . . . . . . . . . . . . . . . . . Garrison Relay 8 | . . . . . . . . . . 4 . . . . . . 2 . . . . . . 2 . Phase Generator 1 | . . . . . . . . . . . . . . . . . 1 . . . . . . . . Machines Repaired . | . . . . . . . . . . . . . . . . . . . . . . . . . . Machines Dismantled . | . . . . . . . . . . . . . . . . . . . . . . . . . . Machines Sabotaged . | . . . . . . . . . . . . . . . . . . . . . . . . . . Overloaded Fab Kills . | . . . . . . . . . . . . . . . . . . . . . . . . . . Hacking | -11 -10 -10 -10 -9 -8 -7 -6 -6 -6 -6 -6 -6 -6 -6 -5 -5 -5 -5 -5 -5 -5 -4 -4 -4 -4 --------- Run | Yrd Mat Min Exi Min Mat Fac Fac Was Fac Gar Fac Low Low Zio Pro Fac Gar Fac Upp Upp War Pro Fac Gar Fac Machines Accessed 51 | . 3 2 1 . 2 18 5 . 1 2 4 1 . . . 3 3 . . . . . 1 4 1 Terminals 34 | . 3 . . . 2 11 4 . . 2 2 . . . . 2 3 . . . . . . 4 1 Fabricators 6 | . . . . . . 4 1 . . . 1 . . . . . . . . . . . . . . Repair Stations . | . . . . . . . . . . . . . . . . . . . . . . . . . . Recycling Units . | . . . . . . . . . . . . . . . . . . . . . . . . . . Scanalyzers 1 | . . . . . . . . . . . 1 . . . . . . . . . . . . . . Garrison Access 6 | . . . . . . 3 . . 1 . . . . . . 1 . . . . . . 1 . . Total Hacks 106 | . 10 2 1 . 7 43 10 . 1 4 5 1 . . . 7 5 . . . . . 1 7 2 Successful 47 | . 2 2 1 . 4 17 5 . 1 . 3 1 . . . 6 2 . . . . . 1 1 1 Failed 59 | . 8 . . . 3 26 5 . . 4 2 . . . . 1 3 . . . . . . 6 1 Catastrophic 13 | . 3 . . . . 4 2 . . 1 . . . . . . 1 . . . . . . 2 . Database Lockouts . | . . . . . . . . . . . . . . . . . . . . . . . . . . Manual 46 | . 10 . 1 . 5 16 5 . . . 2 . . 1 . 4 . . . . . . . . 2 Terminals 82 | . 10 . . . 7 29 9 . . 4 3 . . . . 6 5 . . . . . . 7 2 Fabricators 9 | . . . . . . 7 1 . . . 1 . . . . . . . . . . . . . . Repair Stations . | . . . . . . . . . . . . . . . . . . . . . . . . . . Recycling Units . | . . . . . . . . . . . . . . . . . . . . . . . . . . Scanalyzers 1 | . . . . . . . . . . . 1 . . . . . . . . . . . . . . Garrison Access 10 | . . . . . . 7 . . 1 . . . . . . 1 . . . . . . 1 . . Terminal Hacks 17 | . . 2 1 . 2 5 2 . . . . 1 . . . 1 2 . . . . . . 1 . Record 1 | . . . 1 . . . . . . . . . . . . . . . . . . . . . . Part Schematic 1 | . . . . . . 1 . . . . . . . . . . . . . . . . . . . Open Door 4 | . . 2 . . . . . . . . . 1 . . . . 1 . . . . . . . . Open DSF 1 | . . . . . . . 1 . . . . . . . . . . . . . . . . . . Emergency Access Points 1 | . . . . . . . . . . . . . . . . . 1 . . . . . . . . Garrison Index 1 | . . . . . . 1 . . . . . . . . . . . . . . . . . . . Unreport Threat 1 | . . . . . . 1 . . . . . . . . . . . . . . . . . . . Locate Traps 3 | . . . . . 1 1 1 . . . . . . . . . . . . . . . . . . Dispatch Records 1 | . . . . . . . . . . . . . . . . 1 . . . . . . . . . Transport Status 1 | . . . . . . 1 . . . . . . . . . . . . . . . . . . . Recall Reinforcements 1 | . . . . . 1 . . . . . . . . . . . . . . . . . . . . Garrison Registry 1 | . . . . . . . . . . . . . . . . . . . . . . . . 1 . Fabricator Hacks 7 | . . . . . . 5 1 . . . 1 . . . . . . . . . . . . . . Network Status 4 | . . . . . . 3 . . . . 1 . . . . . . . . . . . . . . Build 3 | . . . . . . 2 1 . . . . . . . . . . . . . . . . . . Repair Station Hacks . | . . . . . . . . . . . . . . . . . . . . . . . . . . Recycling Unit Hacks . | . . . . . . . . . . . . . . . . . . . . . . . . . . Scanalyzer 1 | . . . . . . . . . . . 1 . . . . . . . . . . . . . . Insert Component 1 | . . . . . . . . . . . 1 . . . . . . . . . . . . . . Garrison Access Hacks 5 | . . . . . . 2 . . 1 . . . . . . 1 . . . . . . 1 . . Unlock Access 3 | . . . . . . . . . 1 . . . . . . 1 . . . . . . 1 . . Seal Access 2 | . . . . . . 2 . . . . . . . . . . . . . . . . . . . Unauthorized Hacks 17 | . 2 . . . 2 5 2 . . . 1 . . . . 4 . . . . . . . . 1 Terminals 17 | . 2 . . . 2 5 2 . . . 1 . . . . 4 . . . . . . . . 1 Assimilate 3 | . . . . . . 2 . . . . . . . . . 1 . . . . . . . . . Botnet 12 | . 2 . . . 2 2 2 . . . 1 . . . . 2 . . . . . . . . 1 Operators 2 | . . . . . . 1 . . . . . . . . . 1 . . . . . . . . . Fabricators . | . . . . . . . . . . . . . . . . . . . . . . . . . . Repair Stations . | . . . . . . . . . . . . . . . . . . . . . . . . . . Recycling Units . | . . . . . . . . . . . . . . . . . . . . . . . . . . Scanalyzers . | . . . . . . . . . . . . . . . . . . . . . . . . . . Garrison Access . | . . . . . . . . . . . . . . . . . . . . . . . . . . Data Cores Recovered 1 | . 1 . . . . . . . . . . . . . . . . . . . . . . . . Used 1 | . 1 . . . . . . . . . . . . . . . . . . . . . . . . Hacking Detections 38 | . 3 . . . 2 15 3 . 1 2 3 . . . . 2 1 . . . . . 1 4 1 Full Trace Events 2 | . . . . . . 1 . . . . . . . . . . . . . . . . . 1 . Feedback Events . | . . . . . . . . . . . . . . . . . . . . . . . . . . Feedback Blocked . | . . . . . . . . . . . . . . . . . . . . . . . . . . Robot Schematics Acquired . | . . . . . . . . . . . . . . . . . . . . . . . . . . Robots Built 3 | . . . . . . 1 2 . . . . . . . . . . . . . . . . . . Authchips . | . . . . . . . . . . . . . . . . . . . . . . . . . . Time 268 | . . . . . . 116 152 . . . . . . . . . . . . . . . . . . Total Robot Build Rating 13 | . . . . . . 3 10 . . . . . . . . . . . . . . . . . . Part Schematics Acquired 1 | . . . . . . 1 . . . . . . . . . . . . . . . . . . . Parts Built 2 | . . . . . . 2 . . . . . . . . . . . . . . . . . . . Authchips . | . . . . . . . . . . . . . . . . . . . . . . . . . . Time 47 | . . . . . . 47 . . . . . . . . . . . . . . . . . . . Total Part Build Rating 10 | . . . . . . 10 . . . . . . . . . . . . . . . . . . . Parts Repaired . | . . . . . . . . . . . . . . . . . . . . . . . . . . Time . | . . . . . . . . . . . . . . . . . . . . . . . . . . Parts Recycled . | . . . . . . . . . . . . . . . . . . . . . . . . . . Recycled Matter . | . . . . . . . . . . . . . . . . . . . . . . . . . . Retrieved Matter . | . . . . . . . . . . . . . . . . . . . . . . . . . . Retrieved Components . | . . . . . . . . . . . . . . . . . . . . . . . . . . Parts Scanalyzed . | . . . . . . . . . . . . . . . . . . . . . . . . . . Part Schematics Acquired . | . . . . . . . . . . . . . . . . . . . . . . . . . . Parts Damaged . | . . . . . . . . . . . . . . . . . . . . . . . . . . Bothacking | -11 -10 -10 -10 -9 -8 -7 -6 -6 -6 -6 -6 -6 -6 -6 -5 -5 -5 -5 -5 -5 -5 -4 -4 -4 -4 ------------ Run | Yrd Mat Min Exi Min Mat Fac Fac Was Fac Gar Fac Low Low Zio Pro Fac Gar Fac Upp Upp War Pro Fac Gar Fac Used RIF Installer 4 | . . . . . . . . . . 1 . . . . . . 1 . . . . . . 2 . Coupler Efficiency 1 | . . . . . . . . . . . . . . . . . 1 . . . . . . . . Hotswap 1 | . . . . . . . . . . . . . . . . . . . . . . . . 1 . Autooverride 1 | . . . . . . . . . . . . . . . . . . . . . . . . 1 . Robots Hacked 4 | . . . . . . . . . . . . . . . . . . . . . . . . 4 . Non-combat . | . . . . . . . . . . . . . . . . . . . . . . . . . . Combat 4 | . . . . . . . . . . . . . . . . . . . . . . . . 4 . Robot Hacks Applied 4 | . . . . . . . . . . . . . . . . . . . . . . . . 4 . formatsys_high 4 | . . . . . . . . . . . . . . . . . . . . . . . . 4 . Relay Couplers Released 31 | . . . . . . . . . . 19 . . . . . . 6 . . . . . . 6 . Machine Destruction 31 | . . . . . . . . . . 19 . . . . . . 6 . . . . . . 6 . Attached 3 | . . . . . . . . . . . . . . . . . 1 . . . . . . 2 . Fabnet Peak Effective % . | . . . . . . . . . . . . . . . . . . . . . . . . . . Robots Rewired 16 | . . . . . . . . . . 4 . . . . . . 12 . . . . . . . . Allies Hacked 1 | . . . . . . . . . 1 . . . . . . . . . . . . . . . . Hacks Repelled . | . . . . . . . . . . . . . . . . . . . . . . . . . . Allies | -11 -10 -10 -10 -9 -8 -7 -6 -6 -6 -6 -6 -6 -6 -6 -5 -5 -5 -5 -5 -5 -5 -4 -4 -4 -4 -------- Run | Yrd Mat Min Exi Min Mat Fac Fac Was Fac Gar Fac Low Low Zio Pro Fac Gar Fac Upp Upp War Pro Fac Gar Fac Total Allies 33 | . . . . . . 5 2 2 3 4 . . . . . 1 12 . . . . . . 4 . Largest Group 5 | . . . . . . 3 2 2 4 4 2 . . . . 1 5 4 4 4 4 4 4 2 1 Highest-Rated Group 282 | . . . . . . 95 82 282 227 181 92 . . . . 10 226 183 183 183 183 183 183 98 49 Highest-Rated Ally 141 | . . . . . . 37 41 141 134 51 46 . . . . 10 51 51 51 51 51 51 51 49 49 Total Orders 2 | . . . . . . . . . . . . . . . . . 2 . . . . . . . . STAY 1 | . . . . . . . . . . . . . . . . . 1 . . . . . . . . FOLLOW 1 | . . . . . . . . . . . . . . . . . 1 . . . . . . . . Ally Attacks 195 | . . . . . . 8 12 15 6 29 8 . . . . . 75 . 12 . . . 15 11 4 Total Damage 6180 | . . . . . . 330 562 733 171 743 178 . . . . . 2200 . 363 . . . 403 346 151 Kills 38 | . . . . . . 4 3 1 1 3 . . . . . . 20 . 6 . . . . . . Allies Corrupted 2 | . . . . . . . . . . 2 . . . . . . . . . . . . . . . Allies Melted . | . . . . . . . . . . . . . . . . . . . . . . . . . . Field Lobotomies 5 | . . . . . . 3 . 2 . . . . . . . . . . . . . . . . . Intel | -11 -10 -10 -10 -9 -8 -7 -6 -6 -6 -6 -6 -6 -6 -6 -5 -5 -5 -5 -5 -5 -5 -4 -4 -4 -4 ------- Run | Yrd Mat Min Exi Min Mat Fac Fac Was Fac Gar Fac Low Low Zio Pro Fac Gar Fac Upp Upp War Pro Fac Gar Fac Robot Analysis Total . | . . . . . . . . . . . . . . . . . . . . . . . . . . Derelict Logs Recovered 6 | . . . . . . . . . . . . . 1 . 1 . . . 1 1 . 2 . . . Drone Launches . | . . . . . . . . . . . . . . . . . . . . . . . . . . Drone Recoveries . | . . . . . . . . . . . . . . . . . . . . . . . . . . Exploration | -11 -10 -10 -10 -9 -8 -7 -6 -6 -6 -6 -6 -6 -6 -6 -5 -5 -5 -5 -5 -5 -5 -4 -4 -4 -4 ------------- Run | Yrd Mat Min Exi Min Mat Fac Fac Was Fac Gar Fac Low Low Zio Pro Fac Gar Fac Upp Upp War Pro Fac Gar Fac Turns Passed 24736 | 71 484 870 336 123 882 5663 1366 205 290 1813 1071 627 842 362 400 280 2849 53 423 218 84 552 461 2999 1412 Spaces Moved 14039 | 50 234 568 226 60 426 3257 895 94 214 1091 708 402 575 287 252 210 1492 37 308 168 63 416 303 1192 511 Core 58 | 3 . . . . . . . . . . . . . . . . . . . . . . . . 55 Treads 851 | . . . . . . . . . . . . . . . . . . . . . . . . 677 174 Legs 174 | . . . . . . . . . . . . . . . . . . . . . . . . . 174 Wheels 12956 | 47 234 568 226 60 426 3257 895 94 214 1091 708 402 575 287 252 210 1492 37 308 168 63 416 303 515 108 Hover . | . . . . . . . . . . . . . . . . . . . . . . . . . . Flight . | . . . . . . . . . . . . . . . . . . . . . . . . . . Fastest Speed 50 | 50 95 145 145 140 110 115 115 115 130 130 130 115 115 115 130 130 130 145 130 130 130 130 128 128 50 Average Speed 136 | 86 110 145 145 140 124 125 120 128 130 130 130 128 115 123 130 130 131 145 130 130 130 130 128 191 209 Slowest Speed 640 | 95 145 145 145 140 170 170 130 130 130 130 130 130 115 130 130 130 145 145 145 130 130 130 130 270 640 Overloaded Moves . | . . . . . . . . . . . . . . . . . . . . . . . . . . Propulsion Burnouts . | . . . . . . . . . . . . . . . . . . . . . . . . . . Robots Hopped . | . . . . . . . . . . . . . . . . . . . . . . . . . . Cave-ins Triggered . | . . . . . . . . . . . . . . . . . . . . . . . . . . Exploration Rate (%) 41 | 5 36 95 60 26 36 71 27 76 13 70 17 45 67 14 47 5 97 2 58 40 11 69 8 82 12 Regions Visited 25 Branch Regions 11 Pre-discovered Areas 3 | . . . 1 . . . . . . . . . 1 . . . . . . . . 1 . . . Known Exits Taken 15 | . . . . 1 . 1 . . 1 . 1 1 1 1 1 1 . 1 1 1 1 1 1 . . Unknown Exits Taken 5 | 1 1 1 1 . 1 . . . . . . . . . . . . . . . . . . . . Scrap Searched 17 | . . 1 . . . . . . . . . 3 4 1 2 . . . 2 1 . 3 . . . Spaces Dug 189 | . . 18 . . . 62 19 . . 3 6 7 15 . 13 . 17 . . . . . 3 6 20 Terrain Destroyed 497 | . 3 29 . 77 15 74 20 3 . 8 11 11 16 . 13 . 87 . 1 . . 1 3 34 91 Melee 38 | . . . . . . 35 . . . 3 . . . . . . . . . . . . . . . Projectile 206 | . . . . . 9 32 20 3 . 1 11 9 16 . 13 . 38 . 1 . . 1 3 11 38 AOE 253 | . 3 29 . 77 6 7 . . . 4 . 2 . . . . 49 . . . . . . 23 53 Terrain Rammed . | . . . . . . . . . . . . . . . . . . . . . . . . . . Walls Destroyed . | . . . . . . . . . . . . . . . . . . . . . . . . . . Machines Disabled . | . . . . . . . . . . . . . . . . . . . . . . . . . . Actions | -11 -10 -10 -10 -9 -8 -7 -6 -6 -6 -6 -6 -6 -6 -6 -5 -5 -5 -5 -5 -5 -5 -4 -4 -4 -4 --------- Run | Yrd Mat Min Exi Min Mat Fac Fac Was Fac Gar Fac Low Low Zio Pro Fac Gar Fac Upp Upp War Pro Fac Gar Fac Total 18566 | 68 395 610 235 82 704 4629 1145 134 226 1391 827 493 704 296 298 216 2259 36 321 167 65 423 368 1737 737 Wait 2930 | 2 105 27 3 1 180 1094 182 12 7 109 68 74 78 3 21 . 492 . 6 . 3 2 42 346 73 Move 14012 | 49 233 567 225 59 425 3256 895 93 213 1089 707 401 574 286 251 209 1490 36 307 167 62 415 302 1190 511 Hop . | . . . . . . . . . . . . . . . . . . . . . . . . . . Pick Up 185 | 7 9 10 3 1 22 27 10 1 2 6 7 2 4 . 4 2 15 . . . . 1 5 27 20 Fast Attach 53 | 7 . . . . 4 18 2 1 . 1 2 . . 3 . . 5 . . . . . 1 2 7 Attach 65 | . 1 . . 2 10 1 1 3 . 3 3 . 1 1 . 2 5 . 1 . . . 1 12 18 Detach 16 | . . . . . 1 5 1 . . . 1 . . 1 . . 2 . . . . . . . 5 Swap 164 | . 5 . 1 4 8 39 3 4 2 16 10 3 4 . 6 2 10 . 4 . . 4 5 23 11 Drop 178 | . 8 1 3 . 12 58 10 1 2 4 6 2 3 2 2 1 21 . . . . . 7 19 16 Fire 626 | 3 34 5 . 15 41 95 41 19 . 40 15 11 40 . 14 . 73 . 3 . . 1 5 98 73 Melee 44 | . . . . . . 36 . . . 8 . . . . . . . . . . . . . . . Ram 2 | . . . . . . . . . . . . . . . . . . . . . . . . . 2 Kick . | . . . . . . . . . . . . . . . . . . . . . . . . . . Crush 2 | . . . . . 1 . . . . . . . . . . . . . . . . . . . 1 Escape Stasis 167 | . . . . . . . . . . 72 8 . . . . . 67 . . . . . . 20 . Rewire 122 | . . . . . . . . . . 43 . . . . . . 79 . . . . . . . . Trap . | . . . . . . . . . . . . . . . . . . . . . . . . . . Miscellaneous . | . . . . . . . . . . . . . . . . . . . . . . . . . . Route ------- -11/Scrapyard -10/Materials (discovered 2 exits: [*Mat] / *Min) -10/Mines (discovered 3 exits: [*Mat x2] / *Exi) -10/Exiles -9/Mines -8/Materials (discovered 2 exits: *Fac / *Sto) -7/Factory (discovered 2 exits: *Fac x2) -6/Factory -6/Waste -6/Factory -6/Garrison (discovered 3 exits: *Fac x3) -6/Factory -6/Lower Caves -6/Lower Caves (discovered 2 exits: *Fac / *Zio) -6/Zion -5/Proximity Caves -5/Factory (discovered 2 exits: Fac / Gar) -5/Garrison (discovered 4 exits: *Fac x4) -5/Factory -5/Upper Caves -5/Upper Caves -5/Warlord -4/Proximity Caves -4/Factory (discovered 2 exits: *Res / Gar) -4/Garrison (discovered 3 exits: *Fac x3) -4/Factory History --------- Turn | Location | Event 29 | -11/Scrapyard | Discovered new exit (range 13) 72 | -11/Scrapyard | Entered Materials 320 | -10/Materials | Build established: Mutant 491 | -10/Materials | Discovered new exit (range 6) 525 | -10/Materials | Discovered new exit (range 15) 556 | -10/Materials | Entered Mines 696 | -10/Mines | A weapon hastily lodged in a ceiling crevice suddenly fell to the ground 739 | -10/Mines | Met a Derelict bent on vengeance 875 | -10/Mines | Met a Derelict shopkeep closing up shop 967 | -10/Mines | Found a damaged Exp. Sensor Array with a note attached 970 | -10/Mines | Found Prototype Device 1054 | -10/Mines | Found a hidden stash of uninstalled traps 1300 | -10/Mines | Discovered new exit (range 8) 1357 | -10/Mines | Discovered new exit (range 15) 1374 | -10/Mines | Met a Derelict who couldn't figure out how to use a Trap Extractor 1420 | -10/Mines | Deemed a non-threat by the Exiles lab entrance 1420 | -10/Mines | Discovered new exit (range 5) 1426 | -10/Mines | Entered Exiles 1466 | -10/Exiles | Met 8R-AWN 1489 | -10/Exiles | Met EX-HEX 1531 | -10/Exiles | Met EX-BIN 1548 | -10/Exiles | Aligned with FarCom system 1550 | -10/Exiles | Given EX-Vault access code 1583 | -10/Exiles | Opened EX-Vault 1592 | -10/Exiles | Found Prototype Special Weapon 1593 | -10/Exiles | Identified Field Lobotomy Kit 1628 | -10/Exiles | Warned to stay clear of 0b10 Research branches 1645 | -10/Exiles | Exiles lab attacked by MAIN.C 1705 | -10/Exiles | Learned location of Zion (-6) 1750 | -10/Exiles | Discovered new exit (range 10) 1762 | -10/Exiles | Left Exiles lab with Field Lobotomy Kit 1762 | -10/Exiles | Entered Mines 1763 | -9/Mines | Assembled infested the area 1788 | -9/Mines | Core integrity fell below 50% 1809 | -9/Mines | Destroyed 21 combat bots 1813 | -9/Mines | Lost 3 parts (1p1n1w) 1829 | -9/Mines | Discovered new exit (range 13) 1855 | -9/Mines | Identified exit to Materials 1885 | -9/Mines | Entered Materials 1885 | -8/Materials | Evolved 4 slots: Propulsion x2, Utility x2 1988 | -8/Materials | Discovered new exit (range 5) 2117 | -8/Materials | Identified exit to Storage 2450 | -8/Materials | Lost 4 parts (1p2n1w) 2689 | -8/Materials | Discovered new exit (range 10) 2767 | -8/Materials | Entered Factory 2767 | -7/Factory | Evolved 2 slots: Utility x1, Weapon x1 3128 | -7/Factory | Build established: Gunner 3267 | -7/Factory | Fabricated D-53 Grenadier (x1) 3456 | -7/Factory | Build established: Scavenger-Gunner 3776 | -7/Factory | Fabricated Lgt. Fission Core? 3976 | -7/Factory | Build established: Mutant 4460 | -7/Factory | Build established: Gunner 4572 | -7/Factory | Assimilated O-24 Administrator with FLK Orb 4590 | -7/Factory | Assimilated P-60 Hacker with FLK Orb 4624 | -7/Factory | Assimilated Y-54 Guardian with FLK Orb 4657 | -7/Factory | Identified Exp. Sensor Array 5246 | -7/Factory | Build established: Mutant 5735 | -7/Factory | Build established: Gunner 5936 | -7/Factory | Discovered new exit (range 5) 6131 | -7/Factory | Build established: Mutant 6162 | -7/Factory | Identified exit to Factory 6745 | -7/Factory | Build established: Gunner 7034 | -7/Factory | Discovered exit to Factory (range 5) 8430 | -7/Factory | Entered another Factory area 8430 | -6/Factory | Evolved 2 slots: Utility x2 9079 | -6/Factory | Identified exit to DSF 9122 | -6/Factory | Fabricated H-66 Slayer (x2) 9207 | -6/Factory | Garrison activated, responded to threat 9794 | -6/Factory | Discovered new exit (range 15) 9796 | -6/Factory | Sucked down chute 9796 | -6/Factory | Entered Waste 9811 | -6/Waste | EMP discharged 9841 | -6/Waste | Spotted C-40 Crusher 9854 | -6/Waste | Spotted C-40 Crusher 9857 | -6/Waste | Assimilated C-40 Crusher with FLK Orb 9859 | -6/Waste | Spotted C-40 Crusher 9860 | -6/Waste | Assimilated C-40 Crusher with FLK Orb 9866 | -6/Waste | Spotted C-40 Crusher 9874 | -6/Waste | Spotted C-40 Crusher 9877 | -6/Waste | Allies destroyed C-40 Crusher 9889 | -6/Waste | Destroyed C-40 Crusher 9899 | -6/Waste | Destroyed C-40 Crusher 9911 | -6/Waste | EMP discharged 9911 | -6/Waste | System corruption reached 10% 9916 | -6/Waste | Spotted C-40 Crusher 9970 | -6/Waste | Destroyed C-40 Crusher 9985 | -6/Waste | Discovered new exit (range 13) 9999 | -6/Waste | Identified exit to Factory 10001 | -6/Waste | Entered Factory 10001 | -6/Factory | Accompanied by 1 ally 10212 | -6/Factory | Allied Derelicts emerged from ambush trap array 10290 | -6/Factory | Identified exit to Garrison 10291 | -6/Factory | Entered Garrison 10291 | -6/Garrison | Accompanied by 2 allies 10373 | -6/Garrison | Triggered checkpoint 10525 | -6/Garrison | Discovered new exit (range 11) 10581 | -6/Garrison | Triggered checkpoint 10602 | -6/Garrison | Garrison Relay disabled 10643 | -6/Garrison | Identified exit to Factory 10755 | -6/Garrison | Discovered exit to Factory (range 15) 10881 | -6/Garrison | Triggered checkpoint 10962 | -6/Garrison | Garrison Relay disabled 11233 | -6/Garrison | Triggered checkpoint 11306 | -6/Garrison | Discovered exit to Factory (range 13) 11319 | -6/Garrison | Spotted B-86 Titan 11673 | -6/Garrison | Triggered checkpoint 11710 | -6/Garrison | Garrison Relay disabled 11878 | -6/Garrison | Build established: Commander-Gunner 11883 | -6/Garrison | Triggered checkpoint 11926 | -6/Garrison | Installed Relay Interface Framework 11934 | -6/Garrison | Garrison Relay disabled 12104 | -6/Garrison | Entered Factory 12104 | -6/Factory | Accompanied by 2 allies 12186 | -6/Factory | Build established: Gunner 12454 | -6/Factory | First assault squad dispatched 12639 | -6/Factory | Lost 3 parts (1p1n1w) 13171 | -6/Factory | Discovered new exit (range 3) 13173 | -6/Factory | Identified exit to Lower Caves 13175 | -6/Factory | Entered Lower Caves 13478 | -6/Lower Caves | Encountered a Warlord checkpoint 13778 | -6/Lower Caves | Discovered new exit (range 13) 13801 | -6/Lower Caves | Identified exit to Lower Caves 13802 | -6/Lower Caves | Entered another Lower Caves area 13882 | -6/Lower Caves | Discovered new exit (range 5) 13885 | -6/Lower Caves | Identified exit to Factory 14085 | -6/Lower Caves | Attracted the attention of an 0b10 checkpoint 14549 | -6/Lower Caves | Discovered new exit (range 6) 14642 | -6/Lower Caves | Identified exit to Zion 14644 | -6/Lower Caves | Entered Zion 14679 | -6/Zion | Discovered new exit (range 16) 14720 | -6/Zion | System corruption cleaned by Quarantine Array 14862 | -6/Zion | Received a hallucinogenic algorithm 14888 | -6/Zion | Acquired unknown access codes intercepted by a Zionite 14949 | -6/Zion | RIF detected upon attempting to enter Zion 14949 | -6/Zion | Attacked by Zionites 14949 | -6/Zion | Spotted R5-7JO(B) 14949 | -6/Zion | Spotted XW-5PF(B) 15005 | -6/Zion | Identified exit to Proximity Caves 15006 | -6/Zion | Entered Proximity Caves 15020 | -5/Proximity Caves | Learned 8 Factory zone layouts 15384 | -5/Proximity Caves | Discovered exit to Factory (range 12) 15406 | -5/Proximity Caves | Entered Factory 15406 | -5/Factory | Evolved 2 slots: Power x1, Utility x1 15407 | -5/Factory | Identified exit to Factory 15684 | -5/Factory | Identified exit to Garrison 15686 | -5/Factory | Build established: Skirmisher 15686 | -5/Factory | Entered Garrison 15686 | -5/Garrison | Accompanied by 1 ally 15882 | -5/Garrison | Heavy support dispatched to Factory 16322 | -5/Garrison | Triggered checkpoint 16640 | -5/Garrison | Triggered checkpoint 16746 | -5/Garrison | Expanded RIF knowledge: Coupler Efficiency 16949 | -5/Garrison | Discovered new exit (range 12) 16982 | -5/Garrison | Triggered checkpoint 17128 | -5/Garrison | Garrison Relay disabled 17399 | -5/Garrison | Phase Generator disabled 17501 | -5/Garrison | Build established: Commander-Skirmisher 17546 | -5/Garrison | Triggered checkpoint 17547 | -5/Garrison | Triggered checkpoint 17668 | -5/Garrison | Discovered new exit (range 4) 17671 | -5/Garrison | Identified exit to Factory 17802 | -5/Garrison | Triggered checkpoint 17861 | -5/Garrison | Discovered exit to Factory (range 3) 17938 | -5/Garrison | Triggered checkpoint 17957 | -5/Garrison | Garrison Relay disabled 18142 | -5/Garrison | Discovered exit to Factory (range 9) 18186 | -5/Garrison | Triggered checkpoint 18288 | -5/Garrison | Triggered checkpoint 18345 | -5/Garrison | H-XX Assembler disabled 18535 | -5/Garrison | Entered Factory 18535 | -5/Factory | Accompanied by 4 allies 18566 | -5/Factory | Discovered new exit (range 11) 18585 | -5/Factory | Identified exit to Upper Caves 18588 | -5/Factory | Entered Upper Caves 18588 | -5/Upper Caves | Accompanied by 4 allies 19001 | -5/Upper Caves | Learned location of 1 exit from Factory 19007 | -5/Upper Caves | Discovered new exit (range 2) 19007 | -5/Upper Caves | Identified exit to Upper Caves 19011 | -5/Upper Caves | Entered another Upper Caves area 19011 | -5/Upper Caves | Accompanied by 4 allies 19093 | -5/Upper Caves | Learned Factory terminal intel 19200 | -5/Upper Caves | Discovered new exit (range 14) 19227 | -5/Upper Caves | Identified exit to Warlord 19229 | -5/Upper Caves | Entered Warlord 19229 | -5/Warlord | Accompanied by 4 allies 19266 | -5/Warlord | Discovered new exit (range 15) 19307 | -5/Warlord | Identified exit to Proximity Caves 19313 | -5/Warlord | Entered Proximity Caves 19313 | -4/Proximity Caves | Accompanied by 4 allies 19433 | -4/Proximity Caves | Learned Research terminal intel 19559 | -4/Proximity Caves | Spotted B-86 Titan 19829 | -4/Proximity Caves | Discovered exit to Factory (range 9) 19865 | -4/Proximity Caves | Entered Factory 19865 | -4/Factory | Accompanied by 4 allies 19865 | -4/Factory | Evolved 2 slots: Propulsion x1, Utility x1 19866 | -4/Factory | Identified exit to Research 19867 | -4/Factory | Loaded intel: 26 terminal locations 20161 | -4/Factory | Found Quantum Capacitor 20230 | -4/Factory | Lost 3 allies 20325 | -4/Factory | Identified exit to Garrison 20326 | -4/Factory | Entered Garrison 20344 | -4/Garrison | Triggered checkpoint 20406 | -4/Garrison | Lost 4 parts (1n1u2w) 20456 | -4/Garrison | Build established: Gunner 20473 | -4/Garrison | Expanded RIF knowledge: Autooverride 20924 | -4/Garrison | Spotted B-86 Titan 20933 | -4/Garrison | Triggered checkpoint 21109 | -4/Garrison | Triggered checkpoint 21480 | -4/Garrison | Destroyed B-86 Titan 21502 | -4/Garrison | Lost 3 parts (3w) 21518 | -4/Garrison | Triggered checkpoint 21558 | -4/Garrison | Lost 3 parts (2n1w) 21748 | -4/Garrison | Discovered new exit (range 12) 21748 | -4/Garrison | Discovered new exit (range 43) 21748 | -4/Garrison | Discovered new exit (range 81) 21913 | -4/Garrison | Build established: Scavenger-Gunner 21945 | -4/Garrison | Expanded RIF knowledge: Hotswap 22202 | -4/Garrison | Garrison Relay disabled 22252 | -4/Garrison | Triggered checkpoint 22470 | -4/Garrison | Identified exit to Factory 22843 | -4/Garrison | Garrison Relay disabled 23325 | -4/Garrison | Entered Factory 23325 | -4/Factory | Accompanied by 1 ally 23575 | -4/Factory | First assault squad dispatched 23747 | -4/Factory | Lost 5 parts (1p2n2w) 23828 | -4/Factory | Lost 5 parts (5n) 23939 | -4/Factory | Core integrity fell below 50% 23939 | -4/Factory | System corruption reached 10% 24699 | -4/Factory | Released all parts (7) 24711 | -4/Factory | Core integrity fell below 20% 24730 | -4/Factory | Lost 14 parts (2p4n5u3w) 24737 | -4/Factory | Destroyed by exploding Fusion Modulator Last Messages --------------- 24696_ System corrupted by crushing effect (+3). 24697_ Matter Neutralizer destroyed. 24699_ Imp. Signal Interpreter destroyed. 24699_ Adv. Transmission Jammer destroyed. 24699_ System corrupted by crushing effect (+4). 24699_ Released Wheel. 24699_ Released Adv. Targeting Computer. 24699_ Released Enh. Optical Array. 24699_ Released Core Analyzer. 24699_ Released Huge Storage Unit. 24699_ Released Adv. Target Analyzer. 24699_ Released Quantum Reactor. 24699_ R-10 Processor collects Proton Cannon. 24702_ YA,V6QM2UOEZLCZ,W&G9XMYXKVFBK:5Q#U2VLV 24719_ System corrupted: Component data lost. 24735_ System corrupted: Matter fused (-10). 24737_ Fusion Modulator explodes. 24737_ S-27 Virus destroyed. 24737_ Fusion Modulator explodes. 24737_ Variable Charge Gun destroyed. Map ----- +----------------------------------------------------+ | ?????# ??????????????????????????????????????? | | ?????# ??????????????????????????????????????? | | ????## ??????????????????????????????????????? | | ???? ##????????????????????????????????????? | | ????? ????????????????????????????????????? | | ????? ??????????????????? ???????????????? | | ?????# ??????????????????? ???? ??????????? | | ?????# ?????????????????? ???? #?????????? | | ?????? ????????" ??? #?????????? | | ??????# ##+#########???????? ??? #?????????? | | ??????# # ##???????/ """ ]#?????????? | | ?????## # ##?????? "" #?????????? | | ?????## # ##?????? #?????????? | | ?????## # ##?????? +?????????? | | ????## # ##?????? #?????????? | | "???## # ##### #?????????? | | ? ## # % ######## #?????????? | | ###+### # #### # #?????????? | | ##### ######""" # #?????????? | | # % #"R g #?????????? | | # #""" ; #?????????? | | g# """ """ # %= #g #?????????? | | # """"""""# s% #g #?????????? | | +##+### # """""""%# # #?????????? | | ????? # ^ w# """"""" # # #?????????? | | ????? # # @ s ; ##????????? | | ????? # /# """"""" # # ##????????? | | ????? # ]%#[! """"""" # # ##????????? | | ????? # |/=/!!! """"""" # # ##????????? | | ????? # !=#!! """"""" # #i ##????????? | | ????? # *!#! ######### ####"?????? | | ????? # ###################### ####"?????? | | ?????## b ^b b b #" "? | | ?????## + ? | | ?????## + | | ?????## + | | ?????## % ^ #"?????? | | ?????## ##+#############+##################"?????? | | ?????## # * ##= ##############??????? | | ?????## # ! /%! ## !% ##??????????????????? | | ?????## # ##= %! ##??????????????????? | | ??????# # * ## ##??????????????????? | | ??????# # |/ ## ##??????????????????? | | ??????#[# ! ## * ##??????????????????? | | ??????#!# ## ##??????????????????? | | ??????#%# ## ##??????????????????? | | ??????#[# #############??????????????????? | | ??????#!# #############??????????????????? | | ??????#=# ##?????????????????????????????? | | ###???#=# ##?????????????????????????????? | +----------------------------------------------------+ Best States ------------- Heat Dissipation 97 Coolant Potential 200 Energy Generation 45 Energy Capacity 800 Matter Stores 300 Matter Capacity 300 Sight Range 22 Robot Scan Range 20 Terrain Scan Range 14 Terrain Scan Density 10 Jamming Range 16 Armor Coverage 600 Evasion (%) 50 Targeting Accuracy 16 Target Analysis 8 Core Analysis 6 Recoil Reduction 5 Particle Charging 20 Offensive Hacking 12 Relay Coupler Types 1 Relay Coupler Value 32 Authchip Count 1 Item Schematics ----------------- Imp. Medium Armor Plating | -7/Factory | Hacked Robot Schematics ------------------ None Fabricated ------------ D-53 Grenadier | x1 | -7/Factory | Preloaded Lgt. Fission Core | x2 | -7/Factory | Preloaded H-66 Slayer | x2 | -6/Factory | Preloaded Alien Tech Used ----------------- None Achievements -------------- Exterminator Killing Spree Challenges ------------ None Game ------ Seed DimensionalStormFlightbrick Manual? 0 Play Time 04:40:38 Cumulative 106.7 hours Start 2024.04.20 @ 14:57:39 End 2024.04.25 @ 12:42:07 Sessions 9 Manual Loads 0 Difficulty Rogue Special Mode None Game No. 58 Rogue 57 Adventurer 1 Explorer 0 Win Type - Total 2 Types 2/0/0/0/0/0/0/0/0 Lore% 50 Gallery% 45 Achievement% 42 Wizard Run 0 Options --------- Layout 0 ASCII 1 Keyboard 1 Movement Numpad Keybinds 0 Fullscreen 1 Font 18/SmallcapsGlow Map View 76x50 Zoom Use 0% Tactical HUD 1 Map Filters NONE Filters NONE Steam 1 RUN: f902ede0-ee87-47ec-a760-562c59378abd